bitfinex-derivatives/quotes_BTCF0:USTF0_20240913
["timestamp","ask_amount","ask_price","bid_price","bid_amount"]
[1726203988877,0.45017,57887.0,57886.0,0.168]
[1726203989372,0.3648,57894.0,57893.0,0.086361]
[1726203989373,0.004,57894.0,57893.0,0.086361]
[1726203989572,0.447152,57899.0,57893.0,0.4808]
[1726203989777,0.447152,57899.0,57898.0,0.12]
[1726203990871,0.448152,57899.0,57898.0,0.12]
[1726203991581,0.448152,57899.0,57898.0,0.121]
[1726203992278,0.448152,57899.0,57898.0,0.122]
[1726203992279,0.451152,57899.0,57898.0,0.122]
[1726203992477,0.3648,57899.0,57898.0,0.208354]
[1726203993575,0.3648,57899.0,57898.0,0.23965557]
[1726203993976,0.3648,57899.0,57898.0,1.35781557]
[1726203994175,0.004,57899.0,57898.0,1.35781557]
[1726203997179,0.004,57899.0,57898.0,0.75781557]
[1726203997973,0.004,57899.0,57898.0,0.23965557]
[1726203998173,0.004,57899.0,57898.0,0.75781557]
[1726203998474,0.004,57899.0,57898.0,0.23965557]
[1726203998779,0.004,57899.0,57898.0,0.75781557]
[1726203998978,0.004,57899.0,57898.0,0.23965557]
[1726203999181,0.004,57899.0,57898.0,0.75781557]
[1726204001175,0.004,57899.0,57898.0,0.002]
[1726204001478,0.004,57899.0,57898.0,0.19092734]
[1726204002377,0.090352,57899.0,57898.0,0.122]
[1726204007079,0.090352,57899.0,57898.0,0.002]
[1726204010284,0.090352,57899.0,57898.0,0.05369343]
[1726204010480,0.090352,57899.0,57898.0,0.002]
[1726204010982,0.4808,57904.0,57898.0,0.002]
[1726204010983,0.004,57905.0,57904.0,0.086345]
[1726204011177,0.008,57912.0,57904.0,0.18892042]
[1726204011375,0.086333,57912.0,57911.0,0.12]
[1726204013585,0.3608,57915.0,57911.0,0.12]
[1726204013785,0.447129,57915.0,57914.0,0.12]
[1726204014978,0.447129,57915.0,57914.0,0.121]
[1726204015479,0.447129,57915.0,57914.0,0.122]
[1726204016087,0.008,57922.0,57921.0,0.08632]
[1726204016274,0.008,57929.0,57921.0,0.12]
[1726204016477,0.4095,57931.0,57927.0,0.12]
[1726204016682,0.4095,57931.0,57927.0,0.206309]
[1726204016894,0.086306,57930.0,57927.0,0.206309]
[1726204017592,0.086306,57930.0,57928.0,0.086309]
[1726204019085,0.086306,57930.0,57928.0,0.087309]
[1726204019782,0.086306,57930.0,57929.0,0.086308]
[1726204019991,0.4095,57931.0,57930.0,0.086306]
[1726204020979,0.40002541,57936.0,57929.0,0.201]
[1726204021186,0.3608,57936.0,57935.0,0.286299]
[1726204022996,0.3608,57936.0,57935.0,0.287299]
[1726204024109,0.3608,57936.0,57935.0,0.288299]
[1726204025095,0.086293,57940.0,57935.0,0.202]
[1726204025399,0.1227655,57941.0,57940.0,0.086291]
[1726204025400,0.047,57941.0,57940.0,0.086291]
[1726204025711,0.047,57941.0,57940.0,0.2]
[1726204025712,0.15119945,57941.0,57940.0,0.2]
[1726204025899,0.14626093,57941.0,57940.0,0.2]
[1726204026291,0.10419945,57941.0,57940.0,0.286291]
[1726204026484,0.09078222,57941.0,57940.0,0.286291]
[1726204026892,0.13691388,57941.0,57940.0,0.286291]
[1726204027293,0.09078222,57941.0,57940.0,0.286291]
[1726204027687,0.09078222,57941.0,57940.0,0.287291]
[1726204027996,0.09078222,57941.0,57940.0,0.288291]
[1726204028702,0.11969464,57941.0,57940.0,0.288291]
[1726204028893,0.16175612,57941.0,57940.0,0.288291]
[1726204029294,0.04206148,57941.0,57940.0,0.288291]
[1726204029597,0.04122278,57941.0,57940.0,0.288291]
[1726204030596,0.40202278,57941.0,57940.0,0.002]
[1726204030793,0.40202278,57941.0,57931.0,0.004]
[1726204030794,1.76731241,57941.0,57931.0,0.004]
[1726204031006,0.3608,57932.0,57926.0,0.004]
[1726204031303,0.3608,57932.0,57920.0,0.08632]
[1726204031304,0.086314,57925.0,57920.0,0.08632]
[1726204031504,0.20593664,57923.0,57920.0,0.08632]
[1726204031710,0.04122278,57922.0,57920.0,0.08632]
[1726204032003,0.04122278,57922.0,57919.0,0.56168]
[1726204032004,0.086321,57920.0,57919.0,0.00088]
[1726204032204,0.086321,57920.0,57912.0,0.2]
[1726204032205,0.12754378,57920.0,57912.0,0.2]
[1726204032394,0.20593717,57920.0,57912.0,0.2]
[1726204032595,0.086321,57920.0,57916.0,0.2]
[1726204033204,0.086321,57920.0,57916.0,0.286327]
[1726204034898,0.087321,57920.0,57919.0,0.001]
[1726204035605,0.088321,57920.0,57919.0,0.001]
[1726204035812,0.088321,57920.0,57916.0,0.288327]
[1726204036197,0.088321,57920.0,57919.0,0.001]
[1726204036894,0.088321,57920.0,57916.0,0.288327]
[1726204037294,0.088321,57920.0,57918.0,0.086324]
[1726204037508,0.087321,57920.0,57919.0,0.001]
[1726204038306,0.087321,57920.0,57918.0,0.086324]
[1726204038507,0.087321,57920.0,57919.0,0.001]
[1726204038809,0.087321,57920.0,57919.0,0.002]
[1726204039510,0.087321,57920.0,57919.0,0.001]
[1726204041108,0.087321,57920.0,57918.0,0.088324]
[1726204041311,0.087321,57920.0,57919.0,0.001]
[1726204041505,0.087321,57920.0,57919.0,0.002]
[1726204042206,0.086321,57920.0,57919.0,0.001]
[1726204042404,0.087321,57920.0,57919.0,0.001]
[1726204042611,0.448121,57920.0,57919.0,0.001]
[1726204043016,0.447121,57920.0,57919.0,0.001]
[1726204043309,0.448121,57920.0,57919.0,0.002]
[1726204044614,0.448121,57920.0,57919.0,0.088323]
[1726204045609,0.3618,57920.0,57919.0,0.088323]
[1726204045806,0.04149347,57920.0,57919.0,0.288323]
[1726204046011,0.001,57920.0,57919.0,0.288323]
[1726204046713,0.001,57920.0,57919.0,0.32015337]
[1726204053311,0.001,57920.0,57919.0,1.46015337]
[1726204053915,0.087321,57920.0,57919.0,0.002]
[1726204062427,0.12802825,57920.0,57919.0,0.002]
[1726204062624,0.17529128,57920.0,57919.0,0.002]
[1726204063019,0.22249128,57920.0,57919.0,0.002]
[1726204063328,0.22249032,57920.0,57919.0,0.002]
[1726204064932,0.13616932,57920.0,57919.0,0.088323]
[1726204065114,0.08896932,57920.0,57919.0,0.088323]
[1726204066617,0.12149398,57920.0,57919.0,0.088323]
[1726204066817,0.16220079,57920.0,57919.0,0.088323]
[1726204067625,0.08902553,57920.0,57919.0,0.088323]
[1726204068114,0.08907477,57920.0,57919.0,0.088323]
[1726204070417,0.001,57920.0,57919.0,0.088323]
[1726204076129,0.534442,57920.0,57919.0,0.002]
[1726204076328,0.497421,57920.0,57919.0,0.002]
[1726204076529,0.53793416,57920.0,57919.0,0.002]
[1726204077531,0.63837149,57920.0,57919.0,0.002]
[1726204080732,0.6696123,57920.0,57919.0,0.002]
[1726204081533,0.6694973,57920.0,57919.0,0.002]
[1726204082342,0.73270863,57920.0,57919.0,0.002]
[1726204083234,0.92201531,57920.0,57919.0,0.002]
[1726204084943,0.80950398,57920.0,57919.0,0.088323]
[1726204085140,0.6201973,57920.0,57919.0,0.088323]
[1726204085641,0.47936181,57920.0,57919.0,0.088323]
[1726204086440,0.11856181,57920.0,57919.0,0.088323]
[1726204086649,0.47936181,57920.0,57919.0,0.088323]
[1726204087745,0.11856181,57920.0,57919.0,0.088323]
[1726204088045,0.47936181,57920.0,57919.0,0.088323]
[1726204092543,0.62027457,57920.0,57919.0,0.088323]
[1726204093249,0.62027453,57920.0,57919.0,0.088323]
[1726204094945,0.80958121,57920.0,57919.0,0.088323]
[1726204096250,0.87282833,57920.0,57919.0,0.088323]
[1726204096752,0.51202833,57920.0,57919.0,0.088323]
[1726204096948,0.80958121,57920.0,57919.0,0.088323]
[1726204097153,0.62027453,57920.0,57919.0,0.088323]
[1726204100249,0.25947453,57920.0,57919.0,0.088323]
[1726204100450,0.62027453,57920.0,57919.0,0.088323]
[1726204100771,0.11856181,57920.0,57919.0,0.088323]
[1726204100965,0.47936181,57920.0,57919.0,0.088323]
[1726204101166,0.11856181,57920.0,57919.0,0.088323]
[1726204101367,0.47936181,57920.0,57919.0,0.088323]
[1726204101562,0.11856181,57920.0,57919.0,0.088323]
[1726204101775,0.47936181,57920.0,57919.0,0.088323]
[1726204102969,0.47936181,57920.0,57919.0,0.208323]
[1726204106572,0.11856181,57920.0,57919.0,0.208323]
[1726204106766,0.47936181,57920.0,57919.0,0.208323]
[1726204108476,0.448121,57920.0,57919.0,0.208323]
[1726204109772,0.001,57920.0,57919.0,0.208323]
[1726204110876,0.001,57920.0,57919.0,0.27737078]
[1726204112968,0.3688,57927.0,57926.0,0.086312]
[1726204113170,0.086304,57932.0,57926.0,0.086312]
[1726204113171,0.3608,57932.0,57926.0,0.206312]
[1726204113379,0.086306,57930.0,57927.0,0.08631]
[1726204114866,0.086306,57930.0,57927.0,0.08731]
[1726204115676,0.08818288,57929.0,57928.0,0.086309]
[1726204115874,0.08818288,57929.0,57928.0,0.206309]
[1726204117272,0.08818288,57929.0,57928.0,0.23528306]
[1726204117979,0.08818288,57929.0,57928.0,0.23628306]
[1726204118172,0.08818288,57929.0,57928.0,0.23728306]
[1726204119773,0.04080563,57929.0,57928.0,0.23728306]
[1726204120173,0.12033023,57929.0,57928.0,0.23728306]
[1726204120372,0.16114216,57929.0,57928.0,0.23728306]
[1726204120578,0.12711993,57929.0,57928.0,0.23728306]
[1726204120881,0.17448248,57929.0,57928.0,0.23728306]
[1726204121473,0.12711993,57929.0,57928.0,0.23728306]
[1726204121672,0.17446866,57929.0,57928.0,0.23728306]
[1726204122175,0.24743496,57929.0,57928.0,0.23728306]
[1726204122575,0.086308,57929.0,57928.0,0.23728306]
[1726204130791,0.3608,57932.0,57930.0,0.086306]
[1726204130974,0.3608,57932.0,57931.0,0.12]
[1726204132188,0.3608,57932.0,57931.0,0.207305]
[1726204132386,0.447103,57932.0,57931.0,0.207305]
[1726204133890,0.3608,57932.0,57931.0,0.207305]
[1726204134081,0.3608,57932.0,57931.0,0.208305]
[1726204137680,0.40179251,57932.0,57931.0,0.208305]
[1726204137885,0.44938737,57932.0,57931.0,0.088305]
[1726204138080,0.44938737,57932.0,57931.0,0.208305]
[1726204140295,0.58695703,57932.0,57931.0,0.208305]
[1726204140489,0.44938737,57932.0,57931.0,0.208305]
[1726204140886,0.08858737,57932.0,57931.0,0.208305]
[1726204141091,0.08878854,57933.0,57932.0,0.086303]
[1726204141288,0.04779937,57933.0,57932.0,0.086303]
[1726204141489,0.13775694,57934.0,57933.0,0.086302]
[1726204141692,0.08935111,57934.0,57932.0,0.0458]
[1726204141891,0.16187311,57933.0,57932.0,0.132103]
[1726204142091,0.16187311,57933.0,57932.0,0.252103]
[1726204142092,0.12052655,57933.0,57932.0,0.252103]
[1726204142391,0.16187311,57933.0,57932.0,1.392103]
[1726204142596,0.04134656,57933.0,57932.0,1.392103]
[1726204142793,0.12052655,57934.0,57933.0,0.086302]
[1726204142995,0.13775694,57937.0,57936.0,0.086297]
[1726204143302,0.17915416,57937.0,57936.0,0.206297]
[1726204143489,0.22721079,57937.0,57936.0,0.206297]
[1726204144704,0.086292,57940.0,57937.0,0.086295]
[1726204144895,0.086292,57940.0,57939.0,0.12]
[1726204145795,0.086294,57938.0,57937.0,0.206295]
[1726204147507,0.086294,57938.0,57937.0,0.207295]
[1726204147700,0.086294,57938.0,57937.0,0.208295]
[1726204152806,0.40197478,57938.0,57937.0,0.208295]
[1726204153103,0.40197478,57938.0,57937.0,0.122]
[1726204154608,0.40197478,57938.0,57937.0,0.208296]
[1726204156001,0.22985339,57938.0,57937.0,0.208296]
[1726204156197,0.40197478,57938.0,57937.0,0.208296]
[1726204157201,0.22985339,57938.0,57937.0,0.208296]
[1726204157407,0.40197478,57938.0,57937.0,0.208296]
[1726204157802,0.22985339,57938.0,57937.0,0.208296]
[1726204158919,0.22985339,57938.0,57937.0,0.088296]
[1726204159115,0.22985339,57938.0,57937.0,0.208296]
[1726204159811,0.086294,57938.0,57937.0,0.208296]
[1726204160419,0.447094,57938.0,57937.0,0.208296]
[1726204162817,0.086294,57938.0,57937.0,0.208296]
[1726204163517,0.3608,57940.0,57937.0,0.208296]
[1726204163518,0.447091,57940.0,57939.0,0.086293]
[1726204164709,0.447091,57940.0,57939.0,0.087293]
[1726204165313,0.447091,57940.0,57939.0,0.088293]
[1726204167717,0.59101111,57940.0,57939.0,0.088293]
[1726204168017,0.65562025,57940.0,57939.0,0.088293]
[1726204168824,0.59101111,57940.0,57939.0,0.088293]
[1726204169221,0.56930874,57940.0,57939.0,0.088293]
[1726204169421,0.50472011,57940.0,57939.0,0.088293]
[1726204170123,0.33340666,57940.0,57939.0,0.535386]
[1726204170327,0.06475713,57943.0,57939.0,0.535386]
[1726204170328,0.1723176,57950.0,57939.0,1.566893]
[1726204170520,0.05499033,57946.0,57945.0,0.086284]
[1726204170717,0.05499033,57946.0,57939.0,0.3628]
[1726204170718,0.05499033,57949.0,57948.0,0.086279]
[1726204170924,0.05436221,57949.0,57948.0,1.346279]
[1726204171427,0.05436221,57949.0,57948.0,0.206279]
[1726204171730,0.05436221,57949.0,57948.0,0.12]
[1726204171731,0.1406186,57949.0,57948.0,0.12]
[1726204172437,0.25840385,57949.0,57948.0,0.12]
[1726204172630,0.31274445,57949.0,57948.0,0.12]
[1726204172827,0.31274445,57949.0,57948.0,0.206279]
[1726204173025,0.1406186,57949.0,57948.0,0.206279]
[1726204173228,0.1406186,57949.0,57948.0,0.207279]
[1726204173529,0.22642073,57949.0,57948.0,0.207279]
[1726204173733,0.16641492,57950.0,57948.0,0.207279]
[1726204173932,0.1376649,57950.0,57948.0,0.207279]
[1726204174537,0.086275,57951.0,57950.0,0.086276]
[1726204175038,0.11464339,57951.0,57950.0,0.086276]
[1726204176235,0.11464339,57951.0,57950.0,0.087276]
[1726204176641,0.11464339,57951.0,57950.0,0.088276]
[1726204177838,0.086275,57951.0,57950.0,0.088276]
[1726204179340,0.086275,57951.0,57950.0,0.002]
[1726204182740,0.22945072,57951.0,57950.0,0.002]
[1726204183138,0.28873503,57951.0,57950.0,0.002]
[1726204183342,0.38418551,57951.0,57950.0,0.002]
[1726204185149,0.22945072,57951.0,57950.0,0.002]
[1726204186045,0.17510559,57951.0,57950.0,0.002]
[1726204186456,0.22946819,57951.0,57950.0,0.002]
[1726204187151,0.17510559,57951.0,57950.0,0.002]
[1726204187850,0.2294845,57951.0,57950.0,0.002]
[1726204188042,0.17510559,57951.0,57950.0,0.002]
[1726204189848,0.086275,57951.0,57950.0,0.002]
[1726204193744,0.17255,57951.0,57950.0,0.002]
[1726204194351,0.53335,57951.0,57950.0,0.002]
[1726204196355,0.57451407,57951.0,57950.0,0.002]
[1726204197951,0.48823907,57951.0,57950.0,0.002]
[1726204198157,0.447075,57951.0,57950.0,0.002]
[1726204198852,0.53335,57951.0,57950.0,0.002]
[1726204201046,0.447075,57951.0,57950.0,0.002]
[1726204201450,0.447075,57951.0,57950.0,0.088276]
[1726204201652,0.04127189,57951.0,57950.0,0.049]
[1726204201955,0.12838142,57956.0,57950.0,0.049]
[1726204202148,0.12772778,57955.0,57954.0,0.12]
[1726204203248,0.086269,57955.0,57954.0,0.12]
[1726204203852,0.086269,57955.0,57954.0,0.121]
[1726204204449,0.086269,57955.0,57954.0,0.14957029]
[1726204204845,0.23081067,57955.0,57954.0,0.15057029]
[1726204205353,0.23081067,57955.0,57954.0,0.122]
[1726204206553,0.23081067,57955.0,57954.0,0.208271]
[1726204208253,0.29992748,57955.0,57954.0,0.208271]
[1726204208454,0.40297164,57955.0,57954.0,0.208271]
[1726204209552,0.23081067,57955.0,57954.0,0.208271]
[1726204212761,0.086269,57955.0,57954.0,0.208271]
[1726204215470,0.086269,57955.0,57954.0,0.122]
[1726204215853,0.086269,57955.0,57954.0,0.002]
[1726204216058,0.206269,57955.0,57954.0,0.002]
[1726204216258,0.086269,57955.0,57954.0,0.002]
[1726204218167,0.086269,57955.0,57954.0,0.088271]
[1726204219065,0.086269,57955.0,57954.0,0.002]
[1726204219962,0.12772265,57955.0,57954.0,0.002]
[1726204220164,0.12772265,57955.0,57954.0,0.001]
[1726204220359,0.12772265,57955.0,57954.0,0.002]
[1726204222365,0.12772265,57955.0,57954.0,0.088271]
[1726204223261,0.48851284,57955.0,57954.0,0.088271]
[1726204227571,0.40224384,57955.0,57954.0,0.088271]
[1726204227775,0.40224384,57955.0,57954.0,0.087271]
[1726204228073,0.5052086,57955.0,57954.0,0.088271]
[1726204228559,0.1444086,57955.0,57954.0,0.449071]
[1726204228762,0.1551411,57955.0,57954.0,0.449071]
[1726204228965,0.2995497,57955.0,57954.0,0.449071]
[1726204229269,0.1444086,57955.0,57954.0,0.449071]
[1726204229466,0.1551411,57955.0,57954.0,0.3628]
[1726204230274,0.1444086,57955.0,57954.0,0.449071]
[1726204230572,0.15514555,57955.0,57954.0,0.494371]
[1726204230874,0.25896935,57955.0,57954.0,1.634371]
[1726204231082,0.04181117,57955.0,57954.0,1.720642]
[1726204231269,0.15511681,57955.0,57954.0,1.634371]
[1726204231465,0.14563497,57955.0,57954.0,1.634371]
[1726204231659,0.04184042,57957.0,57954.0,1.5481]
[1726204231967,0.17232868,57958.0,57954.0,1.5481]
[1726204231968,0.14573607,57956.0,57954.0,1.5481]
[1726204232165,0.30084512,57955.0,57954.0,1.634371]
[1726204232472,0.30084512,57955.0,57954.0,1.754371]
[1726204233059,0.30084512,57955.0,57954.0,1.753371]
[1726204233262,0.30084512,57955.0,57954.0,1.754371]
[1726204233777,0.30084512,57955.0,57954.0,1.840642]
[1726204233969,0.09041911,57955.0,57954.0,1.840642]
[1726204234672,0.04184042,57955.0,57954.0,1.840642]
[1726204234873,0.008,57963.0,57955.0,0.086269]
[1726204235068,0.3735,57970.0,57964.0,0.086255]
[1726204235069,0.008,57966.0,57964.0,0.086255]
[1726204235367,0.11585955,57968.0,57965.0,0.12]
[1726204235975,0.3608,57970.0,57967.0,0.086251]
[1726204236373,0.3608,57970.0,57968.0,0.12]
[1726204236886,0.086255,57965.0,57964.0,0.12]
[1726204239080,0.086255,57965.0,57964.0,0.121]
[1726204239376,0.086255,57965.0,57964.0,0.122]
[1726204239574,0.447055,57965.0,57964.0,0.122]
[1726204240075,0.65331,57965.0,57964.0,0.002]
[1726204242975,0.74360407,57965.0,57964.0,0.002]
[1726204243373,0.78860407,57965.0,57964.0,0.002]
[1726204244783,0.66860407,57965.0,57964.0,0.002]
[1726204244984,0.69828963,57965.0,57964.0,0.002]
[1726204245879,0.83614691,57965.0,57964.0,0.002]
[1726204247273,0.69828963,57965.0,57964.0,0.002]
[1726204249287,0.83614691,57965.0,57964.0,0.002]
[1726204249882,0.60799556,57965.0,57964.0,0.002]
[1726204257893,0.69829483,57965.0,57964.0,0.002]
[1726204258478,0.81890326,57965.0,57964.0,0.002]
[1726204260487,0.81890326,57965.0,57964.0,0.00105782]
[1726204260890,0.94322443,57965.0,57964.0,0.00105782]
[1726204261691,0.94277436,57965.0,57964.0,0.00105782]
[1726204262686,0.75310084,57965.0,57964.0,0.00105782]
[1726204264995,0.64965488,57965.0,57964.0,0.00105782]
[1726204266796,0.56299556,57965.0,57964.0,0.00105782]
[1726204266996,0.447055,57965.0,57964.0,0.00105782]
[1726204271509,0.447055,57965.0,57964.0,0.0527612]
[1726204272101,0.447055,57965.0,57964.0,0.00105782]
[1726204272504,0.447055,57965.0,57964.0,0.05281515]
[1726204273203,0.447055,57965.0,57964.0,0.00105782]
[1726204275809,0.48881231,57965.0,57964.0,0.00105782]
[1726204276814,0.57506631,57965.0,57964.0,0.00105782]
[1726204278117,0.48881131,57965.0,57964.0,0.00105782]
[1726204278818,0.57506531,57965.0,57964.0,0.00105782]
[1726204279116,1.04011731,57965.0,57956.0,0.004]
[1726204279321,0.086271,57954.0,57953.0,0.004]
[1726204279627,0.3608,57957.0,57952.0,0.12]
[1726204280116,0.15517207,57955.0,57952.0,0.12]
[1726204280319,0.15517207,57955.0,57952.0,0.086272]
[1726204280320,0.086272,57953.0,57952.0,0.086272]
[1726204280521,0.08982441,57953.0,57952.0,0.086272]
[1726204280719,0.17620038,57956.0,57954.0,0.08627]
[1726204280918,0.086268,57956.0,57955.0,0.12]
[1726204281119,0.23105898,57956.0,57955.0,0.12]
[1726204281329,0.38623105,57956.0,57955.0,0.12]
[1726204283124,0.47012754,57956.0,57955.0,0.121]
[1726204283330,0.31495547,57956.0,57955.0,0.121]
[1726204283733,0.31695547,57956.0,57955.0,0.122]
[1726204284030,0.17910075,57956.0,57955.0,0.122]
[1726204285330,0.31693223,57956.0,57955.0,0.122]
[1726204285529,0.17910075,57956.0,57955.0,0.122]
[1726204285731,0.31692452,57956.0,57955.0,0.122]
[1726204285929,0.31692452,57956.0,57955.0,0.208269]
[1726204288133,0.089268,57956.0,57955.0,0.208269]
[1726204289934,0.089268,57956.0,57955.0,0.088269]
[1726204290135,0.089268,57956.0,57955.0,0.002]
[1726204291230,0.089268,57956.0,57955.0,0.088269]
[1726204292334,0.089268,57956.0,57955.0,0.208269]
[1726204294723,0.089268,57956.0,57955.0,0.088269]
[1726204294925,0.089268,57956.0,57955.0,0.208269]
[1726204295128,0.13085663,57956.0,57955.0,0.208269]
[1726204295839,0.13085663,57956.0,57955.0,0.002]
[1726204299432,0.17906429,57956.0,57955.0,0.002]
[1726204302228,0.31686749,57956.0,57955.0,0.002]
[1726204302427,0.17906429,57956.0,57955.0,0.002]
[1726204302630,0.31686749,57956.0,57955.0,0.002]
[1726204303033,0.089268,57956.0,57955.0,0.088269]
[1726204304139,0.089268,57956.0,57955.0,0.208269]
[1726204304438,0.003,57956.0,57955.0,0.208269]
[1726204307936,0.003,57956.0,57955.0,0.25997237]
[1726204310135,0.003,57956.0,57955.0,0.208269]
[1726204311247,0.089268,57956.0,57955.0,0.088269]
[1726204313248,0.003,57956.0,57955.0,0.208269]
[1726204315243,0.089268,57956.0,57955.0,0.208269]
[1726204318035,0.38957996,57956.0,57955.0,0.208269]
[1726204320034,0.23440789,57956.0,57955.0,0.208269]
[1726204320649,0.38957996,57956.0,57955.0,0.208269]
[1726204321242,0.38934528,57956.0,57955.0,0.208269]
[1726204323645,0.23417321,57956.0,57955.0,0.002]
[1726204323847,0.59497321,57956.0,57955.0,0.002]
[1726204324055,0.76738662,57956.0,57955.0,0.002]
[1726204324547,0.53997162,57956.0,57955.0,0.002]
[1726204325146,0.47956621,57956.0,57955.0,0.002]
[1726204325349,0.56583421,57956.0,57955.0,0.002]
[1726204325552,1.55221076,57956.0,57947.0,0.05170337]
[1726204325745,0.08629,57941.0,57940.0,0.05570337]
[1726204326052,0.086291,57940.0,57939.0,0.086292]
[1726204327253,0.087291,57940.0,57939.0,0.087292]
[1726204328347,0.087291,57940.0,57939.0,0.001]
[1726204328547,0.089291,57940.0,57939.0,0.002]
[1726204330645,0.003,57940.0,57939.0,0.088293]
[1726204331249,0.003,57940.0,57939.0,1.321793]
[1726204333959,0.003,57940.0,57939.0,0.181793]
[1726204337462,0.003,57940.0,57939.0,1.32898535]
[1726204337758,0.008,57948.0,57947.0,0.086281]
[1726204337961,0.086274,57952.0,57949.0,0.086277]
[1726204338146,0.086274,57952.0,57951.0,0.12]
[1726204339554,0.088274,57952.0,57951.0,0.121]
[1726204340755,0.088274,57952.0,57951.0,0.122]
[1726204341953,0.002,57952.0,57951.0,0.208275]
[1726204342447,0.002,57952.0,57951.0,0.23773848]
[1726204349055,0.09143276,57952.0,57951.0,0.23773848]
[1726204350068,0.09144567,57952.0,57951.0,0.23773848]
[1726204351260,0.04338997,57952.0,57951.0,0.23773848]
[1726204351656,0.002,57952.0,57951.0,0.32401348]
[1726204351858,0.05005541,57952.0,57951.0,0.32401348]
[1726204352071,0.04338997,57952.0,57951.0,0.32401348]
[1726204354869,0.04338997,57952.0,57951.0,0.23773848]
[1726204355369,0.002,57952.0,57951.0,0.28944185]
[1726204355557,0.002,57952.0,57951.0,0.23773848]
[1726204360467,0.088273,57952.0,57951.0,0.23773848]
[1726204360671,0.088273,57952.0,57951.0,0.28944185]
[1726204361572,0.088273,57952.0,57951.0,0.23773848]
[1726204364273,0.088273,57952.0,57951.0,0.11773848]
[1726204364578,0.088273,57952.0,57951.0,0.28943159]
[1726204365470,0.088273,57952.0,57951.0,0.23773848]
[1726204367467,0.088273,57952.0,57951.0,0.30667632]
[1726204370370,0.20860084,57952.0,57951.0,0.23773848]
[1726204370573,0.25012302,57952.0,57951.0,0.23773848]
[1726204373172,0.12979518,57952.0,57951.0,0.15146348]
[1726204373479,0.17799607,57952.0,57951.0,0.15146348]
[1726204374973,0.61118348,57952.0,57951.0,0.002]
[1726204375176,0.53847324,57952.0,57951.0,0.002]
[1726204375481,0.17767324,57952.0,57951.0,0.002]
[1726204375777,0.53847324,57952.0,57951.0,0.002]
[1726204376278,0.58507324,57952.0,57951.0,0.002]
[1726204378275,0.495673,57952.0,57951.0,0.002]
[1726204385373,0.63860434,57952.0,57951.0,0.002]
[1726204387077,0.495673,57952.0,57951.0,0.002]
[1726204387287,0.63854881,57952.0,57951.0,0.002]
[1726204387679,0.53669225,57952.0,57951.0,0.002]
[1726204387885,0.65709452,57952.0,57951.0,0.002]
[1726204388783,0.74336752,57952.0,57951.0,0.002]
[1726204388990,0.65709452,57952.0,57951.0,0.002]
[1726204390985,0.53669225,57952.0,57951.0,0.002]
[1726204393288,0.495673,57952.0,57951.0,0.002]
[1726204393777,0.449073,57952.0,57951.0,0.088275]
[1726204395686,0.449073,57952.0,57951.0,0.002]
[1726204402604,0.49009919,57952.0,57951.0,0.002]
[1726204402803,0.49009919,57952.0,57943.0,0.05174497]
[1726204402997,0.49009919,57952.0,57942.0,0.05174497]
[1726204402998,0.086287,57943.0,57942.0,0.05174497]
[1726204403307,0.206285,57944.0,57941.0,0.13249]
[1726204403308,0.086288,57942.0,57941.0,0.13249]
[1726204405001,0.086288,57942.0,57941.0,0.18423497]
[1726204405401,0.086288,57942.0,57941.0,0.13249]
[1726204405603,0.086288,57942.0,57941.0,0.16094565]
[1726204405807,0.087288,57942.0,57941.0,0.16194565]
[1726204406005,0.089288,57942.0,57941.0,0.16294565]
[1726204406198,0.089288,57942.0,57941.0,0.07665565]
[1726204408501,0.22688816,57942.0,57941.0,0.07665565]
[1726204408702,0.31513927,57942.0,57941.0,0.07665565]
[1726204410107,0.17753911,57942.0,57941.0,0.07665565]
[1726204411505,0.09125111,57942.0,57941.0,0.19665565]
[1726204411695,0.0438372,57942.0,57941.0,0.28294565]
[1726204413803,0.003,57942.0,57941.0,0.28294565]
[1726204416502,0.003,57942.0,57941.0,0.64374565]
[1726204419314,0.003,57942.0,57941.0,0.72989618]
[1726204419518,0.003,57942.0,57941.0,0.64374565]
[1726204419915,0.003,57942.0,57941.0,0.72989618]
[1726204420116,0.003,57942.0,57941.0,0.64374565]
[1726204420605,0.003,57942.0,57941.0,0.72989618]
[1726204421403,0.003,57942.0,57941.0,0.84405241]
[1726204422016,0.003,57942.0,57941.0,0.75790188]
[1726204422410,0.003,57942.0,57941.0,0.64374565]
[1726204423912,0.003,57942.0,57941.0,1.24779565]
[1726204424119,0.3688,57950.0,57949.0,0.086278]
[1726204424320,0.40189338,57950.0,57949.0,1.346278]
[1726204425413,0.40289338,57950.0,57949.0,1.347278]
[1726204425611,0.40289338,57950.0,57949.0,0.207278]
[1726204426118,0.40489338,57950.0,57949.0,0.208278]
[1726204426511,0.40489338,57950.0,57949.0,0.23800413]
[1726204427734,0.04409338,57950.0,57949.0,0.23800413]
[1726204428227,0.003,57950.0,57949.0,0.23800413]
[1726204429321,0.003,57950.0,57949.0,0.59880413]
[1726204439233,0.003,57950.0,57949.0,0.23800413]
[1726204440038,0.089276,57950.0,57949.0,0.03172613]
[1726204440339,0.209276,57950.0,57949.0,0.03172613]
[1726204440540,0.209276,57950.0,57949.0,0.002]
[1726204440541,0.25031849,57950.0,57949.0,0.002]
[1726204442940,0.13031849,57950.0,57949.0,0.002]
[1726204444137,0.25031849,57950.0,57949.0,0.002]
[1726204444447,0.29792841,57950.0,57949.0,0.002]
[1726204445243,0.25031849,57950.0,57949.0,0.002]
[1726204445441,0.209276,57950.0,57949.0,0.002]
[1726204446745,0.209276,57950.0,57949.0,0.07094053]